bitfinex/quotes_BTCUSD_20240629
["timestamp","ask_amount","ask_price","bid_price","bid_amount"]
[1719685566287,0.85823688,61074.0,61073.0,0.212524]
[1719685568804,0.69219011,61074.0,61073.0,0.212524]
[1719685571985,0.69217757,61074.0,61073.0,0.211524]
[1719685572508,0.69317757,61074.0,61073.0,0.211524]
[1719685572918,0.69317757,61074.0,61073.0,0.208524]
[1719685573524,0.85921556,61074.0,61073.0,0.208524]
[1719685573678,0.69317757,61074.0,61073.0,0.208524]
[1719685573895,0.85921556,61074.0,61073.0,0.208524]
[1719685574114,0.69317757,61074.0,61073.0,0.208524]
[1719685574321,0.85922235,61074.0,61073.0,0.208524]
[1719685574531,0.69317757,61074.0,61073.0,0.208524]
[1719685574952,0.8592232,61074.0,61073.0,0.208524]
[1719685575192,0.69306512,61074.0,61073.0,0.208524]
[1719685577136,0.69306512,61074.0,61073.0,0.208624]
[1719685578286,0.649415,61074.0,61073.0,0.208624]
[1719685578523,0.69306056,61074.0,61073.0,0.208624]
[1719685578796,0.6930526,61074.0,61073.0,0.208624]
[1719685579241,0.78463408,61074.0,61073.0,0.208624]
[1719685579478,0.85913408,61074.0,61073.0,0.208624]
[1719685579985,0.85913408,61074.0,61073.0,0.22392498]
[1719685580459,0.85913408,61074.0,61073.0,0.208624]
[1719685580963,0.80526144,61074.0,61073.0,0.208624]
[1719685581171,0.80527555,61074.0,61073.0,0.208624]
[1719685581390,0.59554236,61074.0,61073.0,0.208624]
[1719685581641,0.80546882,61074.0,61073.0,0.208624]
[1719685583307,0.63936709,61074.0,61073.0,0.208624]
[1719685583756,0.63936709,61074.0,61073.0,0.21498726]
[1719685584004,0.63936709,61074.0,61073.0,0.208624]
[1719685584216,0.63936709,61074.0,61073.0,0.21498726]
[1719685584451,0.63936709,61074.0,61073.0,0.208624]
[1719685584652,0.63937915,61074.0,61073.0,0.208624]
[1719685585335,0.63937915,61074.0,61073.0,0.209624]
[1719685585801,0.63837915,61074.0,61073.0,0.209624]
[1719685587913,0.63839328,61074.0,61073.0,0.209624]
[1719685588404,0.63923328,61074.0,61073.0,0.209624]
[1719685590783,0.63930372,61074.0,61073.0,0.209624]
[1719685594305,0.63926756,61074.0,61073.0,0.209624]
[1719685595608,0.41003756,61074.0,61073.0,0.209624]
[1719685595843,0.41003756,61074.0,61073.0,0.21598726]
[1719685596907,0.41003756,61074.0,61073.0,0.209624]
[1719685597087,0.36615236,61074.0,61073.0,0.209624]
[1719685597877,0.5322707,61074.0,61073.0,0.209624]
[1719685599238,0.57611988,61074.0,61073.0,0.209624]
[1719685600194,0.63923154,61074.0,61073.0,0.002024]
[1719685600440,0.33975929,61074.0,61073.0,0.002024]
[1719685600677,0.34840051,61074.0,61073.0,0.002024]
[1719685600877,0.69224551,61074.0,61073.0,0.00838726]
[1719685601205,0.69224551,61074.0,61073.0,0.002024]
[1719685603563,0.69226873,61074.0,61073.0,0.002024]
[1719685604000,0.69231731,61074.0,61073.0,0.002024]
[1719685605450,1.05465629,61074.0,61073.0,0.002024]
[1719685605651,1.20938629,61074.0,61073.0,0.002024]
[1719685605856,1.28388629,61074.0,61073.0,0.002024]
[1719685606246,1.28388629,61074.0,61073.0,0.001024]
[1719685606453,1.29288629,61074.0,61073.0,0.001024]
[1719685607143,1.29302797,61074.0,61073.0,0.001024]
[1719685607634,1.29302796,61074.0,61073.0,0.001024]
[1719685610280,1.24898398,61074.0,61073.0,0.001024]
[1719685610506,1.29298772,61074.0,61073.0,0.001024]
[1719685613672,1.29299063,61074.0,61073.0,0.001024]
[1719685619792,1.29304428,61074.0,61073.0,0.001024]
[1719685621695,1.21854428,61074.0,61073.0,0.001024]
[1719685621908,1.29304428,61074.0,61073.0,0.001024]
[1719685623891,1.21854428,61074.0,61073.0,0.001024]
[1719685624097,1.29304428,61074.0,61073.0,0.001024]
[1719685625454,1.29347476,61074.0,61073.0,0.001024]
[1719685625875,1.29348643,61074.0,61073.0,0.001024]
[1719685627433,1.55831643,61074.0,61073.0,0.001024]
[1719685627649,1.60255709,61074.0,61073.0,0.001024]
[1719685628511,1.60308772,61074.0,61073.0,0.001024]
[1719685631755,1.60321657,61074.0,61073.0,0.001024]
[1719685635014,1.25855102,61074.0,61073.0,0.001024]
[1719685635190,1.37316602,61074.0,61073.0,0.001024]
[1719685638112,1.3730154,61074.0,61073.0,0.001024]
[1719685638532,1.37301375,61074.0,61073.0,0.001024]
[1719685641051,1.32798464,61074.0,61073.0,0.001024]
[1719685641260,1.37299811,61074.0,61073.0,0.001024]
[1719685643891,1.36589811,61074.0,61073.0,0.001024]
[1719685644367,1.36585621,61074.0,61073.0,0.001024]
[1719685646005,1.33735621,61074.0,61073.0,0.113724]
[1719685646237,1.33735621,61074.0,61073.0,0.07973579]
[1719685647540,1.33732011,61074.0,61073.0,0.07973579]
[1719685649418,0.81732266,61073.0,61072.0,0.0908]
[1719685649637,0.543855,61072.0,61071.0,0.1127]
[1719685649845,0.70619398,61072.0,61071.0,0.1127]
[1719685650258,0.75112945,61072.0,61071.0,0.1127]
[1719685650687,0.75095257,61072.0,61071.0,0.1127]
[1719685651117,1.20946798,61072.0,61071.0,0.1127]
[1719685651331,1.21046798,61072.0,61071.0,0.1127]
[1719685651753,1.21046798,61072.0,61071.0,0.12909506]
[1719685652840,1.21246798,61072.0,61071.0,0.12909506]
[1719685653080,0.57315,61066.0,61065.0,0.2012]
[1719685653297,0.81366009,61066.0,61065.0,0.2012]
[1719685653506,0.81366009,61066.0,61065.0,0.23304587]
[1719685653710,0.64765,61066.0,61065.0,0.23304587]
[1719685653920,0.69236947,61066.0,61065.0,0.23304587]
[1719685654133,0.92162947,61066.0,61065.0,0.23304587]
[1719685654344,0.92262947,61066.0,61065.0,0.22459506]
[1719685654569,0.92262947,61066.0,61065.0,0.24004587]
[1719685655616,0.92362947,61066.0,61065.0,0.24504587]
[1719685656920,0.9234935,61066.0,61065.0,0.24504587]
[1719685658020,1.08951065,61066.0,61065.0,0.24504587]
[1719685658253,1.08951065,61066.0,61065.0,0.22865081]
[1719685658461,1.08951065,61066.0,61065.0,0.2132]
[1719685659316,0.9234935,61066.0,61065.0,0.2132]
[1719685660148,0.92346048,61066.0,61065.0,0.2132]
[1719685663200,0.87891,61066.0,61065.0,0.2132]
[1719685663669,0.92352504,61066.0,61065.0,0.22865081]
[1719685665303,0.80889504,61066.0,61065.0,0.22865081]
[1719685665535,0.84902504,61066.0,61065.0,0.22865081]
[1719685665826,1.13064401,61066.0,61065.0,0.22865081]
[1719685666271,0.96458225,61066.0,61065.0,0.22865081]
[1719685666478,0.96458225,61066.0,61065.0,0.2132]
[1719685666479,1.13064583,61066.0,61065.0,0.2132]
[1719685666691,1.13064583,61066.0,61065.0,0.219579]
[1719685666930,1.13064583,61066.0,61065.0,0.2132]
[1719685667674,1.16004459,61066.0,61065.0,0.2132]
[1719685667895,0.99398101,61066.0,61065.0,0.2132]
[1719685672961,0.94936597,61066.0,61065.0,0.2132]
[1719685673159,0.99414462,61066.0,61065.0,0.2132]
[1719685673597,0.9941579,61066.0,61065.0,0.2132]
[1719685679542,0.99410437,61066.0,61065.0,0.2132]
[1719685681768,0.94936597,61066.0,61065.0,0.2132]
[1719685682006,0.99409995,61066.0,61065.0,0.2132]
[1719685685066,0.94936597,61066.0,61065.0,0.2132]
[1719685685299,0.99407677,61066.0,61065.0,0.2132]
[1719685685530,0.94936597,61066.0,61065.0,0.2132]
[1719685685769,0.99407568,61066.0,61065.0,0.2132]
[1719685686705,0.99407568,61066.0,61065.0,0.214124]
[1719685688154,0.94936597,61066.0,61065.0,0.214124]
[1719685688368,0.99360073,61066.0,61065.0,0.214124]
[1719685691318,0.94936597,61066.0,61065.0,0.214124]
[1719685691549,0.9935879,61066.0,61065.0,0.214124]
[1719685694731,0.99370223,61066.0,61065.0,0.214124]
[1719685695085,0.99370321,61066.0,61065.0,0.214124]
[1719685697455,0.94936597,61066.0,61065.0,0.214124]
[1719685697888,0.99355761,61066.0,61065.0,0.214124]
[1719685700941,0.99365713,61066.0,61065.0,0.214124]
[1719685704179,0.9937166,61066.0,61065.0,0.214124]
[1719685704605,0.99371661,61066.0,61065.0,0.214124]
[1719685707256,0.94936597,61066.0,61065.0,0.214124]
[1719685707411,0.99370951,61066.0,61065.0,0.214124]
[1719685707939,0.76444951,61066.0,61065.0,0.214124]
[1719685708084,0.99370951,61066.0,61065.0,0.214124]
[1719685709504,0.91920951,61066.0,61065.0,0.214124]
[1719685709703,0.99370951,61066.0,61065.0,0.214124]
[1719685710123,0.91920951,61066.0,61065.0,0.214124]
[1719685710327,0.99370951,61066.0,61065.0,0.214124]
[1719685710524,0.99388267,61066.0,61065.0,0.214124]
[1719685711330,0.99288267,61066.0,61065.0,0.207124]
[1719685711559,0.99788267,61066.0,61065.0,0.207124]
[1719685711760,0.99688267,61066.0,61065.0,0.202124]
[1719685711952,0.99688267,61066.0,61065.0,0.203124]
[1719685712157,1.00288267,61066.0,61065.0,0.203124]
[1719685712762,0.99188267,61066.0,61065.0,0.202124]
[1719685712960,1.00088267,61066.0,61065.0,0.202124]
[1719685713584,0.96036597,61066.0,61065.0,0.202124]
[1719685713912,1.00511621,61066.0,61065.0,0.202124]
[1719685714371,0.99711621,61066.0,61065.0,0.202124]
[1719685714761,0.99911621,61066.0,61065.0,0.202124]
[1719685715734,0.99411621,61066.0,61065.0,0.202124]
[1719685716159,0.99811621,61066.0,61065.0,0.202124]
[1719685717323,0.95336597,61066.0,61065.0,0.202124]
[1719685717533,0.99812081,61066.0,61065.0,0.202124]
[1719685720096,0.99813427,61066.0,61065.0,0.202124]
[1719685720521,0.99897427,61066.0,61065.0,0.202124]
[1719685723259,0.95420597,61066.0,61065.0,0.202124]
[1719685723487,0.9990551,61066.0,61065.0,0.202124]
[1719685723729,0.95420597,61066.0,61065.0,0.202124]
[1719685723966,0.99905556,61066.0,61065.0,0.202124]
[1719685726627,0.99908047,61066.0,61065.0,0.202124]
[1719685729842,0.95020597,61066.0,61065.0,0.202124]
[1719685730046,0.99317084,61066.0,61065.0,0.202124]
[1719685730266,0.95520597,61066.0,61065.0,0.203124]
[1719685730474,0.95520597,61066.0,61065.0,0.204124]
[1719685730475,1.00617085,61066.0,61065.0,0.204124]
[1719685730708,0.99317085,61066.0,61065.0,0.202124]
[1719685730956,0.99917085,61066.0,61065.0,0.203124]
[1719685732122,1.00617085,61066.0,61065.0,0.203124]
[1719685732871,1.00017085,61066.0,61065.0,0.202124]
[1719685733105,0.99817085,61066.0,61065.0,0.202124]
[1719685733581,1.00417085,61066.0,61065.0,0.202124]
[1719685733805,0.99917085,61066.0,61065.0,0.202124]
[1719685734538,1.00217085,61066.0,61065.0,0.202124]
[1719685735711,0.99617085,61066.0,61065.0,0.202124]
[1719685736190,0.95620597,61066.0,61065.0,0.202124]
[1719685736426,1.00113791,61066.0,61065.0,0.202124]
[1719685739604,1.00117684,61066.0,61065.0,0.202124]
[1719685739825,0.99317684,61066.0,61065.0,0.202124]
[1719685740007,0.99917684,61066.0,61065.0,0.203124]
[1719685740248,1.00617684,61066.0,61065.0,0.203124]
[1719685740885,1.00017684,61066.0,61065.0,0.202124]
[1719685741111,1.00617684,61066.0,61065.0,0.203124]
[1719685741333,0.99917684,61066.0,61065.0,0.203124]
[1719685741856,1.00617684,61066.0,61065.0,0.203124]
[1719685742087,0.99929549,61066.0,61065.0,0.203124]
[1719685742597,0.99929549,61066.0,61065.0,0.202124]
[1719685742598,0.99829549,61066.0,61065.0,0.202124]
[1719685742818,1.00329549,61066.0,61065.0,0.202124]
[1719685743235,0.74700249,61066.0,61065.0,0.202124]
[1719685744771,0.74200249,61066.0,61065.0,0.202124]
[1719685745215,0.74900249,61066.0,61065.0,0.202124]
[1719685745661,0.74200249,61066.0,61065.0,0.202124]
[1719685745878,0.74800249,61066.0,61065.0,0.202124]
[1719685748364,0.74806136,61066.0,61065.0,0.202124]
[1719685750017,0.74306136,61066.0,61065.0,0.202124]
[1719685750701,0.73706136,61066.0,61065.0,0.202124]
[1719685750958,0.74306136,61066.0,61065.0,0.203124]
[1719685751174,0.75006136,61066.0,61065.0,0.203124]
[1719685751389,0.70491297,61066.0,61065.0,0.203124]
[1719685751597,0.75005941,61066.0,61065.0,0.203124]
[1719685751812,0.7500594,61066.0,61065.0,0.203124]
[1719685754649,0.75016248,61066.0,61065.0,0.203124]
[1719685761016,0.70491297,61066.0,61065.0,0.203124]
[1719685761234,0.74989863,61066.0,61065.0,0.203124]
[1719685761450,0.70491297,61066.0,61065.0,0.203124]
[1719685761670,0.74989998,61066.0,61065.0,0.203124]
[1719685764017,0.74988698,61066.0,61065.0,0.203124]
[1719685767458,0.70491297,61066.0,61065.0,0.203124]
[1719685767663,0.74991668,61066.0,61065.0,0.203124]
[1719685770667,0.70491297,61066.0,61065.0,0.203124]
[1719685770872,0.74986408,61066.0,61065.0,0.203124]
[1719685771081,0.70491297,61066.0,61065.0,0.203124]
[1719685771291,0.74986408,61066.0,61065.0,0.203124]
[1719685773809,0.70491297,61066.0,61065.0,0.203124]
[1719685774020,0.74981549,61066.0,61065.0,0.203124]
[1719685777177,0.7498194,61066.0,61065.0,0.203124]
[1719685780502,0.7498806,61066.0,61065.0,0.203124]
[1719685780736,0.70491297,61066.0,61065.0,0.203124]
[1719685780927,0.74987896,61066.0,61065.0,0.203124]
[1719685783544,0.70491297,61066.0,61065.0,0.203124]
[1719685783779,0.74983636,61066.0,61065.0,0.203124]
[1719685785662,0.47133279,61066.0,61065.0,0.203124]
[1719685786340,0.47133279,61066.0,61065.0,0.21889303]
[1719685786840,0.4264094,61066.0,61065.0,0.21889303]
[1719685797618,0.87174838,61066.0,61065.0,0.01769303]
[1719685797835,0.91658892,61066.0,61065.0,0.01769303]
[1719685798041,0.91658892,61066.0,61065.0,0.001924]
[1719685798907,0.95217346,61066.0,61065.0,0.001924]
[1719685799545,0.90733292,61066.0,61065.0,0.001924]
[1719685799755,0.95221882,61066.0,61065.0,0.001924]
[1719685799976,0.90033292,61066.0,61065.0,0.01769303]
[1719685800189,0.95921881,61066.0,61065.0,0.001924]
[1719685800413,0.93971881,61066.0,61065.0,0.01047313]
[1719685800861,0.95371881,61066.0,61065.0,0.01047313]
[1719685801492,0.93971881,61066.0,61065.0,0.01047313]
[1719685801925,0.95371382,61066.0,61065.0,0.01047313]
[1719685802141,0.88421382,61066.0,61065.0,0.01047313]
[1719685805119,0.88412271,61066.0,61065.0,0.01047313]
[1719685808287,0.88348885,61066.0,61065.0,0.01047313]
[1719685811478,0.88354818,61066.0,61065.0,0.21367313]
[1719685811722,0.83933292,61066.0,61065.0,0.01047313]
[1719685811939,0.80908003,61066.0,61065.0,0.01047313]
[1719685812151,0.88358003,61066.0,61065.0,0.01047313]
[1719685813969,0.88358003,61066.0,61065.0,0.21457313]
[1719685813970,0.44674105,61066.0,61065.0,0.21457313]
[1719685814267,0.40249394,61066.0,61065.0,0.21457313]
[1719685814517,0.06442454,61066.0,61065.0,0.21457313]
[1719685815182,0.05042454,61066.0,61065.0,0.21457313]
[1719685815415,0.05842454,61066.0,61065.0,0.21457313]
[1719685815659,0.05842454,61066.0,61065.0,0.22079303]
[1719685815888,0.05042454,61066.0,61065.0,0.22079303]
[1719685816133,0.03642454,61066.0,61065.0,0.22079303]
[1719685816356,0.04442454,61066.0,61065.0,0.22079303]
[1719685817281,0.03742454,61066.0,61065.0,0.22079303]
[1719685818690,0.03642454,61066.0,61065.0,0.22079303]
[1719685818904,0.03742454,61066.0,61065.0,0.22079303]
[1719685827440,0.39976352,61066.0,61065.0,0.01669303]
[1719685827686,0.56574272,61066.0,61065.0,0.01669303]
[1719685828135,0.61081263,61066.0,61065.0,0.01669303]
[1719685830085,0.6110336,61066.0,61065.0,0.01669303]
[1719685830332,0.4450544,61066.0,61065.0,0.01669303]
[1719685830583,0.6110336,61066.0,61065.0,0.01669303]
[1719685833425,0.4450544,61066.0,61065.0,0.01669303]
[1719685833695,0.6110336,61066.0,61065.0,0.01669303]
[1719685834419,0.4450544,61066.0,61065.0,0.01669303]
[1719685834639,0.6110336,61066.0,61065.0,0.01669303]
[1719685834872,0.2450544,61066.0,61065.0,0.01669303]
[1719685835357,0.41103706,61066.0,61065.0,0.01669303]
[1719685836345,0.36574379,61066.0,61065.0,0.01669303]
[1719685836579,0.41049954,61066.0,61065.0,0.01669303]
[1719685836807,0.41049664,61066.0,61065.0,0.01669303]
[1719685839414,0.41050766,61066.0,61065.0,0.01669303]
[1719685840576,0.42050766,61066.0,61065.0,0.01669303]
[1719685840802,0.40950766,61066.0,61065.0,0.01669303]
[1719685841288,0.42950766,61066.0,61065.0,0.01669303]
[1719685841762,0.41850766,61066.0,61065.0,0.01669303]
[1719685842446,0.20776352,61066.0,61065.0,0.01669303]
[1719685842652,0.41851223,61066.0,61065.0,0.01669303]
[1719685843073,0.42751223,61066.0,61065.0,0.01669303]
[1719685844267,0.42752346,61066.0,61065.0,0.01669303]
[1719685845223,0.42752346,61066.0,61065.0,0.23129303]
[1719685845453,0.50202346,61066.0,61065.0,0.215524]
[1719685845688,0.50202346,61066.0,61065.0,0.23129303]
[1719685845902,0.48412281,61066.0,61065.0,0.23129303]
[1719685846118,0.49512281,61066.0,61065.0,0.23129303]
[1719685846365,0.50512281,61066.0,61065.0,0.23129303]
[1719685846583,0.10230041,61066.0,61065.0,0.23129303]
[1719685846801,0.04642454,61066.0,61065.0,0.23456785]
[1719685847006,0.05742454,61066.0,61065.0,0.23129303]
[1719685847217,0.05742454,61066.0,61065.0,0.25129303]
[1719685847433,0.05742454,61066.0,61065.0,0.23456785]
[1719685847637,0.04642454,61066.0,61065.0,0.23129303]
[1719685848490,0.04642454,61066.0,61065.0,0.23456784]
[1719685848729,0.03642454,61066.0,61065.0,0.23456784]
[1719685848967,0.03842454,61066.0,61065.0,0.23456784]
[1719685849184,0.04142454,61066.0,61065.0,0.23456784]
[1719685850052,0.04142454,61066.0,61065.0,0.25456784]
[1719685851091,0.04142454,61066.0,61065.0,0.23456784]
[1719685852996,0.04142454,61066.0,61065.0,0.25456784]
[1719685853240,0.16591206,61076.0,61070.0,0.1088]
[1719685853498,0.16233898,61075.0,61071.0,0.0934]
[1719685853717,0.16233898,61075.0,61071.0,0.09958529]
[1719685853900,0.0745,61072.0,61071.0,0.09958529]
[1719685855445,0.04480675,61076.0,61073.0,0.1088]
[1719685855681,0.0745,61075.0,61074.0,0.0934]
[1719685855958,0.17945061,61083.0,61075.0,0.1088]
[1719685855959,0.34534726,61083.0,61075.0,0.1088]
[1719685856234,0.00084,61084.0,61080.0,0.2022]
[1719685856494,0.0745,61082.0,61081.0,0.2022]
[1719685856696,0.0745,61082.0,61081.0,0.2116015]
[1719685857004,0.0745,61082.0,61081.0,0.20832763]
[1719685857526,0.0745,61082.0,61081.0,0.00612763]
[1719685858247,0.0745,61082.0,61081.0,0.20832763]
[1719685858512,0.0755,61082.0,61081.0,0.21332763]
[1719685859023,0.0765,61082.0,61081.0,0.21432763]
[1719685861558,0.0765,61082.0,61081.0,0.23432763]
[1719685861826,0.0765,61082.0,61081.0,0.23760164]
[1719685863071,0.0765,61082.0,61081.0,0.21432763]
[1719685870408,0.0765,61082.0,61081.0,0.01212763]
[1719685871774,0.0755,61082.0,61081.0,0.01112763]
[1719685871990,0.0745,61082.0,61081.0,0.00612763]
[1719685872201,0.0765,61082.0,61078.0,0.4022]
[1719685872426,0.0745,61079.0,61078.0,0.41859506]
[1719685873703,0.0745,61079.0,61078.0,0.41959506]
[1719685873908,0.0745,61079.0,61078.0,0.42059506]
[1719685875516,0.0745,61079.0,61078.0,0.4042]
[1719685876263,0.0745,61079.0,61078.0,0.41034493]
[1719685877245,0.0745,61079.0,61078.0,0.20814493]
[1719685879624,0.0745,61079.0,61078.0,0.21371826]
[1719685880894,0.0745,61079.0,61078.0,0.42011826]
[1719685884861,0.11949651,61079.0,61078.0,0.42011826]
[1719685891296,0.04499651,61079.0,61078.0,0.42011826]
[1719685891531,0.11949651,61079.0,61078.0,0.42011826]
[1719685891774,0.0745,61079.0,61078.0,0.42011826]
[1719685892463,0.0745,61079.0,61078.0,0.22011826]
[1719685892702,0.0745,61079.0,61078.0,0.42011826]
[1719685898991,0.0745,61079.0,61078.0,0.22011826]
[1719685899212,0.0745,61079.0,61078.0,0.42011826]
[1719685908603,0.0745,61079.0,61078.0,0.21371826]
[1719685909031,0.0745,61079.0,61078.0,0.21271826]
[1719685910304,0.0775,61079.0,61078.0,0.21271826]
[1719685910755,0.0775,61079.0,61078.0,0.21171826]
[1719685910964,0.0775,61079.0,61078.0,0.21271826]
[1719685911390,0.0775,61079.0,61078.0,0.21171826]
[1719685911599,0.0765,61079.0,61078.0,0.21171826]
[1719685911818,0.0795,61079.0,61078.0,0.21171826]
[1719685912687,0.00584,61079.0,61078.0,0.21171826]
[1719685912897,0.08034,61079.0,61078.0,0.01171826]
[1719685913116,0.08034,61079.0,61078.0,0.21171826]
[1719685915603,0.24267898,61079.0,61078.0,0.01171826]
[1719685915823,0.32237898,61079.0,61078.0,0.01171826]
[1719685919065,0.31937898,61079.0,61078.0,0.01171826]
[1719685919479,0.33037898,61079.0,61078.0,0.01171826]
[1719685920381,0.32837898,61079.0,61078.0,0.01171826]
[1719685920816,0.33837898,61079.0,61078.0,0.01171826]
[1719685921464,0.32737898,61079.0,61078.0,0.01171826]
[1719685921651,0.33837898,61079.0,61078.0,0.01171826]
[1719685922780,0.51782959,61079.0,61078.0,0.01171826]
[1719685922997,0.0677,61075.0,61067.0,0.1114]
[1719685923210,0.0745,61068.0,61067.0,0.12779506]
[1719685923451,0.0745,61068.0,61067.0,0.01639506]
[1719685925062,0.0755,61068.0,61067.0,0.01639506]
[1719685926374,0.23783898,61068.0,61067.0,0.01639506]
[1719685927479,0.23683898,61068.0,61067.0,0.01639506]
[1719685927750,0.24283898,61068.0,61067.0,0.01639506]
[1719685927958,0.23683898,61068.0,61067.0,0.01639506]
[1719685928392,0.24783898,61068.0,61067.0,0.01639506]
[1719685928611,0.24783898,61068.0,61065.0,0.000924]
[1719685928830,0.24783898,61068.0,61065.0,0.01731906]
[1719685930541,0.24283898,61068.0,61066.0,0.00662848]
[1719685930754,0.24183898,61068.0,61066.0,0.00662848]
[1719685930970,0.24183898,61068.0,61065.0,0.01731906]
[1719685930971,0.24283898,61068.0,61065.0,0.01731906]
[1719685931181,0.24283898,61068.0,61067.0,0.00662271]
[1719685931397,0.25183898,61068.0,61066.0,0.00662848]
[1719685931609,0.23683898,61068.0,61067.0,0.00662271]
[1719685931827,0.24583898,61068.0,61067.0,0.00662271]
[1719685932057,0.25483898,61068.0,61065.0,0.01731906]
[1719685932286,0.24583898,61068.0,61067.0,0.00662271]
[1719685932512,0.24583898,61068.0,61065.0,0.01731906]
[1719685932513,0.24583898,61068.0,61066.0,0.00662848]
[1719685932749,0.24583898,61068.0,61067.0,0.00662271]
[1719685933153,0.24583898,61068.0,61065.0,0.01731906]
[1719685933358,0.24583898,61068.0,61067.0,0.00662271]
[1719685933597,0.24583898,61068.0,61066.0,0.00662848]
[1719685933819,0.24583898,61068.0,61067.0,0.00662271]
[1719685934042,0.25483898,61068.0,61067.0,0.00662271]
[1719685934268,0.25483898,61068.0,61065.0,0.01731906]
[1719685934706,0.24583898,61068.0,61066.0,0.00662848]
[1719685934913,0.25483898,61068.0,61066.0,0.00662848]
[1719685935127,0.25483898,61068.0,61065.0,0.01731906]
[1719685935385,0.24583898,61068.0,61067.0,0.00662271]
[1719685935600,0.23683898,61068.0,61066.0,0.00662848]
[1719685935820,0.24583898,61068.0,61066.0,0.00662848]
[1719685936041,0.24583898,61068.0,61065.0,0.01731906]
[1719685936256,0.25483898,61068.0,61067.0,0.00662271]
[1719685936467,0.25483898,61068.0,61066.0,0.00662848]
[1719685936716,0.25483898,61068.0,61067.0,0.00662271]
[1719685937189,0.17133898,61068.0,61066.0,0.088]
[1719685937439,0.25483898,61068.0,61067.0,0.11572271]
[1719685937692,0.24583898,61068.0,61067.0,0.11572271]
[1719685937921,0.17945061,61069.0,61067.0,0.11572271]
[1719685937922,0.04837242,61069.0,61067.0,0.11572271]
[1719685938132,0.0745,61068.0,61067.0,0.11572271]
[1719685938581,0.0925,61068.0,61067.0,0.11572271]
[1719685939010,0.0745,61068.0,61067.0,0.11572271]
[1719685939665,0.0835,61068.0,61067.0,0.11572271]
[1719685940307,0.0925,61068.0,61067.0,0.11672271]
[1719685942788,0.09223645,61068.0,61067.0,0.11672271]
[1719685946922,0.018,61068.0,61067.0,0.11672271]
[1719685947181,0.0333457,61075.0,61067.0,0.11672271]
[1719685947396,0.0745,61068.0,61067.0,0.13311777]
[1719685948400,0.0745,61068.0,61067.0,0.13211777]
[1719685949797,0.0745,61068.0,61067.0,0.13311777]
[1719685950284,0.0745,61068.0,61067.0,0.13211777]
[1719685950513,0.0745,61068.0,61067.0,0.13311777]
[1719685950817,0.0825,61068.0,61067.0,0.13311777]
[1719685951064,0.0825,61068.0,61067.0,0.22111777]
[1719685951297,0.08186407,61068.0,61067.0,0.22111777]
[1719685952572,0.08186407,61068.0,61067.0,0.32111777]
[1719685952573,0.00736407,61068.0,61067.0,0.32111777]
[1719685952818,0.00736407,61068.0,61067.0,0.30472271]
[1719685953066,0.00736407,61068.0,61067.0,0.50472271]
[1719685953301,0.0745,61068.0,61067.0,0.28372271]
[1719685954043,0.0745,61068.0,61067.0,0.29172271]
[1719685957917,0.0745,61068.0,61067.0,0.21172271]
[1719685962544,0.0745,61068.0,61067.0,0.01462271]
[1719685962797,0.0847,61068.0,61067.0,0.01462271]
[1719685963047,0.12352383,61068.0,61067.0,0.01462271]
[1719685963303,0.12352383,61068.0,61067.0,0.01062271]
[1719685963783,0.12752383,61068.0,61067.0,0.00662271]
[1719685964043,0.12752383,61068.0,61065.0,0.000924]
[1719685964044,0.13152383,61068.0,61065.0,0.000924]
[1719685964283,0.12752383,61068.0,61067.0,0.00662271]
[1719685964523,0.12752383,61068.0,61065.0,0.01731906]
[1719685964524,0.13152383,61068.0,61066.0,0.00662848]
[1719685964754,0.13152383,61068.0,61067.0,0.00662271]
[1719685964995,0.12752383,61068.0,61065.0,0.01731906]
[1719685965217,0.13152383,61068.0,61067.0,0.00662271]
[1719685965509,0.13152383,61068.0,61066.0,0.00662848]
[1719685965756,0.13152383,61068.0,61067.0,0.00662271]
[1719685966089,0.13152383,61068.0,61065.0,0.01731906]
[1719685966296,0.12752383,61068.0,61065.0,0.01731906]
[1719685966535,0.12752383,61068.0,61066.0,0.00662848]
[1719685966761,0.13152383,61068.0,61066.0,0.00662848]
[1719685967000,0.13152383,61068.0,61065.0,0.01731906]
[1719685967275,0.12352383,61068.0,61067.0,0.00662271]
[1719685967498,0.12752383,61068.0,61066.0,0.00662848]
[1719685967726,0.12752383,61068.0,61067.0,0.00662271]
[1719685968520,0.29354207,61068.0,61065.0,0.01731906]
[1719685968773,0.0102,61067.0,61065.0,0.01731906]
[1719685970229,0.0132,61067.0,61065.0,0.01731906]
[1719685970963,0.0162,61067.0,61065.0,0.01731906]
[1719685971270,0.0102,61067.0,61065.0,0.01731906]
[1719685971518,0.0102,61067.0,61065.0,0.01831906]
[1719685971519,0.0202,61067.0,61065.0,0.01831906]
[1719685971983,0.0152,61067.0,61065.0,0.01731906]
[1719685972219,0.0202,61067.0,61065.0,0.01831906]
[1719685972681,0.0152,61067.0,61065.0,0.01831906]
[1719685972902,0.0202,61067.0,61065.0,0.01831906]
[1719685974082,0.0202,61067.0,61065.0,0.001924]
[1719685974308,0.16605171,61066.0,61065.0,0.001924]
[1719685974539,0.18625171,61067.0,61065.0,0.001924]
[1719685974763,0.16605171,61066.0,61065.0,0.001924]
[1719685975602,0.0202,61067.0,61065.0,0.001924]
[1719685976060,0.01,61067.0,61065.0,0.001924]
[1719685976305,0.16233898,61066.0,61065.0,0.01831906]
[1719685976536,0.16233898,61066.0,61065.0,0.01731906]
[1719685976675,0.17033898,61066.0,61065.0,0.01731906]
[1719685976911,0.17033898,61066.0,61065.0,0.0239533]
[1719685977326,0.17033898,61066.0,61065.0,0.0249533]
[1719685977544,0.16233898,61066.0,61065.0,0.0239533]
[1719685977983,0.16233898,61066.0,61065.0,0.0259533]
[1719685977984,0.17633898,61066.0,61065.0,0.0259533]
[1719685978572,0.25083898,61066.0,61065.0,0.0259533]
[1719685981792,0.25083898,61066.0,61065.0,0.00955824]
[1719685983542,0.41682228,61066.0,61065.0,0.0167449]
[1719685984781,0.12907261,61066.0,61065.0,0.0167449]
[1719685985016,0.20357261,61066.0,61065.0,0.0167449]
[1719685985730,0.0745,61066.0,61065.0,0.0167449]
[1719685989772,0.2404511,61066.0,61065.0,0.0167449]
[1719685991450,0.0745,61066.0,61065.0,0.0167449]
[1719685996076,0.0745,61066.0,61065.0,0.1260449]
[1719685996910,0.0745,61066.0,61065.0,0.2179449]
[1719686007273,0.07534,61066.0,61065.0,0.2179449]
[1719686014737,0.33418606,61082.0,61065.0,0.1086449]
[1719686014976,0.16233898,61076.0,61066.0,0.1113]
[1719686015211,0.0745,61067.0,61066.0,0.1113]
[1719686017109,0.0775,61067.0,61066.0,0.1123]